[Event "Titled Tuesday Blitz August 08 Early 2023"]
[White "Tarhan, Adar"]
[Black "Remizov, Yaroslav"]
[WhiteFideId "34544712"]
[BlackFideId "34134015"]
[WhiteElo "2668"]
[BlackElo "2830"]
[Result "0-1"]
[Round "9"]
[TimeControl "180+1"]
[Date "2023.08.08"]
[WhiteClock "0:00:02"]
[BlackClock "0:00:24"]
[Board "25"]

1. e4 {[%clk 0:03:00]}  c5 {[%clk 0:02:58]} 2. Nf3 {[%clk 0:03:00]}  Nc6 {[%clk 0:02:56]} 3. d4 {[%clk 0:02:58]}  cxd4 {[%clk 0:02:56]} 4. Nxd4 {[%clk 0:02:59]}  Nf6 {[%clk 0:02:57]} 5. Nc3 {[%clk 0:02:59]}  e6 {[%clk 0:02:57]} 6. Nxc6 {[%clk 0:02:54]}  bxc6 {[%clk 0:02:58]} 7. e5 {[%clk 0:02:54]}  Nd5 {[%clk 0:02:58]} 8. Ne4 {[%clk 0:02:54]}  Qc7 {[%clk 0:02:59]} 9. f4 {[%clk 0:02:54]}  Rb8 {[%clk 0:02:59]} 10. c4 {[%clk 0:02:48]}  Bb4+ {[%clk 0:02:59]} 11. Ke2 {[%clk 0:02:49]}  O-O {[%clk 0:02:59]} 12. a3 {[%clk 0:02:48]}  Be7 {[%clk 0:02:58]} 13. cxd5 {[%clk 0:02:47]}  cxd5 {[%clk 0:02:58]} 14. Nd6 {[%clk 0:02:46]}  f6 {[%clk 0:02:53]} 15. Nxc8 {[%clk 0:02:45]}  Rfxc8 {[%clk 0:02:54]} 16. Qd2 {[%clk 0:02:39]}  fxe5 {[%clk 0:02:51]} 17. fxe5 {[%clk 0:02:40]}  Qxe5+ {[%clk 0:02:50]} 18. Kd1 {[%clk 0:02:39]}  Qe4 {[%clk 0:02:34]} 19. Bd3 {[%clk 0:02:38]}  Qa4+ {[%clk 0:02:30]} 20. Ke1 {[%clk 0:02:37]}  Bb4 {[%clk 0:02:23]} 21. axb4 {[%clk 0:02:36]}  Qxa1 {[%clk 0:02:23]} 22. Ke2 {[%clk 0:02:31]}  Qa4 {[%clk 0:02:21]} 23. b5 {[%clk 0:02:26]}  Qg4+ {[%clk 0:02:12]} 24. Ke1 {[%clk 0:02:23]}  e5 {[%clk 0:02:06]} 25. Rf1 {[%clk 0:02:16]}  e4 {[%clk 0:02:02]} 26. Be2 {[%clk 0:02:15]}  Qe6 {[%clk 0:02:01]} 27. b3 {[%clk 0:01:52]}  d4 {[%clk 0:01:59]} 28. Bb2 {[%clk 0:01:52]}  d3 {[%clk 0:01:47]} 29. Qg5 {[%clk 0:01:49]}  Qg6 {[%clk 0:01:45]} 30. Qd5+ {[%clk 0:01:35]}  Kh8 {[%clk 0:01:44]} 31. Rf7 {[%clk 0:01:32]}  Rg8 {[%clk 0:01:33]} 32. Bh5 {[%clk 0:01:17]}  Qxg2 {[%clk 0:01:27]} 33. Qe5 {[%clk 0:01:16]}  d6 {[%clk 0:01:17]} 34. Qd4 {[%clk 0:01:05]}  e3 {[%clk 0:01:15]} 35. Bc3 {[%clk 0:00:51]}  d2+ {[%clk 0:01:03]} 36. Kd1 {[%clk 0:00:49]}  Qg1+ {[%clk 0:01:03]} 37. Kc2 {[%clk 0:00:45]}  Qc1+ {[%clk 0:01:03]} 38. Kd3 {[%clk 0:00:44]}  d1=Q+ {[%clk 0:01:02]} 39. Bxd1 {[%clk 0:00:45]}  Qxd1+ {[%clk 0:01:03]} 40. Kxe3 {[%clk 0:00:46]}  Rbe8+ {[%clk 0:01:02]} 41. Kf2 {[%clk 0:00:45]}  Re2+ {[%clk 0:01:01]} 42. Kg3 {[%clk 0:00:41]}  Qc2 {[%clk 0:00:35]} 43. Kf3 {[%clk 0:00:35]}  Rg2 {[%clk 0:00:31]} 44. Qe3 {[%clk 0:00:19]}  Rg6 {[%clk 0:00:30]} 45. h3 {[%clk 0:00:11]}  Qd1+ {[%clk 0:00:29]} 46. Kf2 {[%clk 0:00:10]}  Qg1+ {[%clk 0:00:25]} 47. Ke2 {[%clk 0:00:09]}  Rg2+ {[%clk 0:00:24]} 48. Kd3 {[%clk 0:00:05]}  Rg3 {[%clk 0:00:24]} 49. Rf3 {[%clk 0:00:03]}  Qd1+ {[%clk 0:00:24]} 50. Ke4 {[%clk 0:00:01]}  d5+ {[%clk 0:00:24]} 51. Kf4 {[%clk 0:00:01]}  Rxf3+ {[%clk 0:00:24]} 52. Qxf3 {[%clk 0:00:01]}  Rf8+ {[%clk 0:00:24]} 53. Ke5 {[%clk 0:00:02]}  Qxf3 {[%clk 0:00:24]} 0-1


[Site "https://www.chess.com"]

[Event "Titled Tuesday Blitz August 08 Early 2023"]
[White "Ashraf, Artin"]
[Black "Fus, Jakub"]
[WhiteFideId "22514805"]
[BlackFideId "1193023"]
[WhiteElo "2811"]
[BlackElo "2686"]
[Result "1-0"]
[Round "9"]
[TimeControl "180+1"]
[Date "2023.08.08"]
[WhiteClock "0:00:03"]
[BlackClock "0:00:01"]
[Board "26"]

1. e4 {[%clk 0:03:00]}  e6 {[%clk 0:03:00]} 2. d3 {[%clk 0:02:57]}  d5 {[%clk 0:03:00]} 3. Nd2 {[%clk 0:02:58]}  Nf6 {[%clk 0:03:01]} 4. g3 {[%clk 0:02:58]}  Nc6 {[%clk 0:02:59]} 5. Bg2 {[%clk 0:02:57]}  dxe4 {[%clk 0:03:00]} 6. Nxe4 {[%clk 0:02:56]}  Nxe4 {[%clk 0:02:59]} 7. Bxe4 {[%clk 0:02:57]}  e5 {[%clk 0:02:56]} 8. f4 {[%clk 0:01:45]}  exf4 {[%clk 0:02:52]} 9. Bxf4 {[%clk 0:01:44]}  Bd6 {[%clk 0:02:52]} 10. Qd2 {[%clk 0:01:41]}  Qf6 {[%clk 0:02:26]} 11. O-O-O {[%clk 0:01:18]}  Bxf4 {[%clk 0:02:25]} 12. gxf4 {[%clk 0:01:17]}  Bd7 {[%clk 0:02:18]} 13. Nf3 {[%clk 0:01:13]}  O-O-O {[%clk 0:02:18]} 14. Rhe1 {[%clk 0:01:09]}  h6 {[%clk 0:02:03]} 15. Ne5 {[%clk 0:01:08]}  Rhe8 {[%clk 0:01:55]} 16. Nxd7 {[%clk 0:01:07]}  Kxd7 {[%clk 0:01:48]} 17. Qf2 {[%clk 0:00:54]}  a6 {[%clk 0:01:35]} 18. d4 {[%clk 0:00:36]}  Kc8 {[%clk 0:01:30]} 19. d5 {[%clk 0:00:36]}  Nb8 {[%clk 0:01:14]} 20. Bg2 {[%clk 0:00:32]}  g5 {[%clk 0:00:56]} 21. Qa7 {[%clk 0:00:06]}  Qxf4+ {[%clk 0:00:55]} 22. Kb1 {[%clk 0:00:06]}  Qg4 {[%clk 0:00:43]} 23. Bf1 {[%clk 0:00:03]}  Qh4 {[%clk 0:00:39]} 24. Rxe8 {[%clk 0:00:02]}  Rxe8 {[%clk 0:00:40]} 25. Bd3 {[%clk 0:00:03]}  Qf4 {[%clk 0:00:10]} 26. a4 {[%clk 0:00:03]}  Re3 {[%clk 0:00:02]} 27. Rf1 {[%clk 0:00:03]}  Rf3 {[%clk 0:00:03]} 28. Re1 {[%clk 0:00:03]}  Re3 {[%clk 0:00:03]} 29. Qxe3 {[%clk 0:00:03]}  Qxe3 {[%clk 0:00:01]} 30. Rxe3 {[%clk 0:00:03]} 1-0


[Site "https://www.chess.com"]

[Event "Titled Tuesday Blitz August 08 Early 2023"]
[White "Aradhya, Garg"]
[Black "Kazakouski, Valery"]
[WhiteFideId "25006746"]
[BlackFideId "13507443"]
[WhiteElo "2762"]
[BlackElo "2891"]
[Result "0-1"]
[Round "9"]
[TimeControl "180+1"]
[Date "2023.08.08"]
[WhiteClock "0:00:20"]
[BlackClock "0:01:38"]
[Board "32"]

1. d4 {[%clk 0:03:00]}  Nf6 {[%clk 0:02:46]} 2. Nf3 {[%clk 0:03:00]}  e6 {[%clk 0:02:46]} 3. Bg5 {[%clk 0:02:59]}  h6 {[%clk 0:02:46]} 4. Bxf6 {[%clk 0:02:59]}  Qxf6 {[%clk 0:02:47]} 5. e4 {[%clk 0:03:00]}  d6 {[%clk 0:02:47]} 6. Nc3 {[%clk 0:02:59]}  Nd7 {[%clk 0:02:47]} 7. Bc4 {[%clk 0:02:54]}  c6 {[%clk 0:02:46]} 8. Qe2 {[%clk 0:02:53]}  e5 {[%clk 0:02:46]} 9. d5 {[%clk 0:02:48]}  Be7 {[%clk 0:02:42]} 10. O-O {[%clk 0:02:44]}  O-O {[%clk 0:02:41]} 11. a4 {[%clk 0:02:44]}  a5 {[%clk 0:02:40]} 12. Rad1 {[%clk 0:02:39]}  Nc5 {[%clk 0:02:40]} 13. Ne1 {[%clk 0:02:32]}  Qg6 {[%clk 0:02:32]} 14. Nd3 {[%clk 0:02:30]}  Nxd3 {[%clk 0:02:23]} 15. Rxd3 {[%clk 0:02:29]}  Kh8 {[%clk 0:02:19]} 16. Rg3 {[%clk 0:02:01]}  Qh7 {[%clk 0:02:18]} 17. h3 {[%clk 0:01:53]}  h5 {[%clk 0:02:16]} 18. Rf3 {[%clk 0:01:50]}  g6 {[%clk 0:02:12]} 19. Bd3 {[%clk 0:01:39]}  Qh6 {[%clk 0:02:09]} 20. Rd1 {[%clk 0:01:32]}  f5 {[%clk 0:02:03]} 21. g3 {[%clk 0:00:58]}  f4 {[%clk 0:02:00]} 22. Kg2 {[%clk 0:00:58]}  g5 {[%clk 0:01:58]} 23. g4 {[%clk 0:00:58]}  Kg7 {[%clk 0:01:51]} 24. gxh5 {[%clk 0:00:54]}  Qxh5 {[%clk 0:01:45]} 25. Rxf4 {[%clk 0:00:25]}  Qxh3+ {[%clk 0:01:42]} 26. Kg1 {[%clk 0:00:24]}  Rxf4 {[%clk 0:01:40]} 27. f3 {[%clk 0:00:20]}  Rxf3 {[%clk 0:01:38]} 0-1


[Site "https://www.chess.com"]

[Event "Titled Tuesday Blitz August 08 Early 2023"]
[White "Shyam, Sundar M."]
[Black "Vokhidov, Shamsiddin"]
[WhiteFideId "5019141"]
[BlackFideId "14204223"]
[WhiteElo "2724"]
[BlackElo "2889"]
[Result "0-1"]
[Round "9"]
[TimeControl "180+1"]
[Date "2023.08.08"]
[WhiteClock "0:01:58"]
[BlackClock "0:02:10"]
[Board "33"]

1. e4 {[%clk 0:03:00]}  c5 {[%clk 0:02:59]} 2. Nf3 {[%clk 0:03:00]}  e6 {[%clk 0:03:00]} 3. g3 {[%clk 0:02:59]}  Nc6 {[%clk 0:02:59]} 4. Bg2 {[%clk 0:02:58]}  Nf6 {[%clk 0:03:00]} 5. Qe2 {[%clk 0:02:58]}  e5 {[%clk 0:02:59]} 6. O-O {[%clk 0:02:57]}  Be7 {[%clk 0:03:00]} 7. c3 {[%clk 0:02:57]}  O-O {[%clk 0:03:00]} 8. d3 {[%clk 0:02:53]}  Re8 {[%clk 0:02:59]} 9. Na3 {[%clk 0:02:47]}  h6 {[%clk 0:02:59]} 10. Nc2 {[%clk 0:02:46]}  d5 {[%clk 0:02:54]} 11. Rd1 {[%clk 0:02:45]}  d4 {[%clk 0:02:54]} 12. c4 {[%clk 0:02:43]}  a6 {[%clk 0:02:53]} 13. h3 {[%clk 0:02:42]}  b5 {[%clk 0:02:52]} 14. b3 {[%clk 0:02:43]}  Rb8 {[%clk 0:02:40]} 15. Nh4 {[%clk 0:02:36]}  Bf8 {[%clk 0:02:39]} 16. Nf5 {[%clk 0:02:35]}  Ne7 {[%clk 0:02:34]} 17. Nxe7+ {[%clk 0:02:29]}  Qxe7 {[%clk 0:02:35]} 18. f4 {[%clk 0:02:28]}  g6 {[%clk 0:02:32]} 19. Qf3 {[%clk 0:02:27]}  Bg7 {[%clk 0:02:30]} 20. fxe5 {[%clk 0:02:27]}  Nd7 {[%clk 0:02:29]} 21. Bf4 {[%clk 0:02:19]}  Nxe5 {[%clk 0:02:26]} 22. Qe2 {[%clk 0:02:19]}  bxc4 {[%clk 0:02:24]} 23. bxc4 {[%clk 0:02:19]}  Rb2 {[%clk 0:02:22]} 24. Rf1 {[%clk 0:02:12]}  Be6 {[%clk 0:02:16]} 25. Bc1 {[%clk 0:02:06]}  Rb7 {[%clk 0:02:15]} 26. Kh2 {[%clk 0:02:05]}  Bxc4 {[%clk 0:02:13]} 27. dxc4 {[%clk 0:02:03]}  d3 {[%clk 0:02:14]} 28. Qd1 {[%clk 0:02:03]}  dxc2 {[%clk 0:02:13]} 29. Qxc2 {[%clk 0:02:04]}  Ng4+ {[%clk 0:02:10]} 30. hxg4 {[%clk 0:02:03]}  Bxa1 {[%clk 0:02:11]} 31. Bxh6 {[%clk 0:02:03]}  Be5 {[%clk 0:02:10]} 32. g5 {[%clk 0:01:58]}  Rb2 {[%clk 0:02:10]} 0-1


[Site "https://www.chess.com"]

[Event "Titled Tuesday Blitz August 08 Early 2023"]
[White "Timerkhanov, Alexander"]
[Black "Pranav Anand"]
[WhiteFideId "24177938"]
[BlackFideId "46626786"]
[WhiteElo "2675"]
[BlackElo "2860"]
[Result "0-1"]
[Round "9"]
[TimeControl "180+1"]
[Date "2023.08.08"]
[WhiteClock "0:00:00"]
[BlackClock "0:00:04"]
[Board "35"]

1. d4 {[%clk 0:03:00]}  Nf6 {[%clk 0:03:00]} 2. Bg5 {[%clk 0:03:01]}  c5 {[%clk 0:02:57]} 3. d5 {[%clk 0:03:00]}  Ne4 {[%clk 0:02:56]} 4. h4 {[%clk 0:03:00]}  Qb6 {[%clk 0:02:55]} 5. Nd2 {[%clk 0:02:59]}  Nxg5 {[%clk 0:02:53]} 6. hxg5 {[%clk 0:03:00]}  Qxb2 {[%clk 0:02:53]} 7. g6 {[%clk 0:03:00]}  fxg6 {[%clk 0:02:50]} 8. e3 {[%clk 0:03:01]}  d6 {[%clk 0:02:43]} 9. Bd3 {[%clk 0:02:55]}  Kd8 {[%clk 0:02:42]} 10. Ngf3 {[%clk 0:02:34]}  Kc7 {[%clk 0:02:32]} 11. Bxg6 {[%clk 0:02:29]}  Qf6 {[%clk 0:02:28]} 12. Bd3 {[%clk 0:02:28]}  Bg4 {[%clk 0:02:27]} 13. Ne4 {[%clk 0:02:25]}  Bxf3 {[%clk 0:01:56]} 14. gxf3 {[%clk 0:02:14]}  Qe5 {[%clk 0:01:56]} 15. c4 {[%clk 0:01:55]}  g5 {[%clk 0:01:54]} 16. Rb1 {[%clk 0:01:49]}  Nd7 {[%clk 0:01:45]} 17. f4 {[%clk 0:01:40]}  gxf4 {[%clk 0:01:36]} 18. Rh5 {[%clk 0:01:36]}  Qg7 {[%clk 0:01:36]} 19. Ng5 {[%clk 0:01:32]}  Qc3+ {[%clk 0:01:36]} 20. Ke2 {[%clk 0:01:29]}  Ne5 {[%clk 0:01:23]} 21. Ne6+ {[%clk 0:01:29]}  Kc8 {[%clk 0:01:24]} 22. Rxe5 {[%clk 0:01:20]}  f3+ {[%clk 0:01:24]} 23. Kf1 {[%clk 0:00:53]}  dxe5 {[%clk 0:01:07]} 24. Rb3 {[%clk 0:00:39]}  Qa5 {[%clk 0:01:07]} 25. Rb5 {[%clk 0:00:36]}  Qa3 {[%clk 0:01:07]} 26. Rxc5+ {[%clk 0:00:31]}  Kb8 {[%clk 0:01:07]} 27. Qb1 {[%clk 0:00:30]}  Bh6 {[%clk 0:00:47]} 28. Rc7 {[%clk 0:00:28]}  b6 {[%clk 0:00:45]} 29. c5 {[%clk 0:00:26]}  Rc8 {[%clk 0:00:25]} 30. cxb6 {[%clk 0:00:26]}  Rxc7 {[%clk 0:00:25]} 31. bxc7+ {[%clk 0:00:26]}  Kc8 {[%clk 0:00:24]} 32. Bf5 {[%clk 0:00:23]}  Kd7 {[%clk 0:00:19]} 33. Qc2 {[%clk 0:00:22]}  Qa6+ {[%clk 0:00:10]} 34. Kg1 {[%clk 0:00:09]}  Ke8 {[%clk 0:00:11]} 35. Nc5 {[%clk 0:00:06]}  Qf6 {[%clk 0:00:09]} 36. c8=Q+ {[%clk 0:00:06]}  Rxc8 {[%clk 0:00:09]} 37. Bxc8 {[%clk 0:00:06]}  Qg5+ {[%clk 0:00:10]} 38. Kf1 {[%clk 0:00:06]}  Qg2+ {[%clk 0:00:11]} 39. Ke1 {[%clk 0:00:06]}  Qg1+ {[%clk 0:00:12]} 40. Kd2 {[%clk 0:00:06]}  Qxf2+ {[%clk 0:00:13]} 41. Kc3 {[%clk 0:00:05]}  Qxe3+ {[%clk 0:00:12]} 42. Kb4 {[%clk 0:00:05]}  Qd4+ {[%clk 0:00:12]} 43. Qc4 {[%clk 0:00:04]}  Qd2+ {[%clk 0:00:10]} 44. Kb5 {[%clk 0:00:04]}  f2 {[%clk 0:00:09]} 45. Bd7+ {[%clk 0:00:04]}  Kf8 {[%clk 0:00:06]} 46. Ne6+ {[%clk 0:00:03]}  Kf7 {[%clk 0:00:06]} 47. Be8+ {[%clk 0:00:03]}  Kxe8 {[%clk 0:00:05]} 48. Qg4 {[%clk 0:00:01]}  f1=Q+ {[%clk 0:00:04]} 49. Kc6 {[%clk 0:00:00]}  Qc2+ {[%clk 0:00:04]} 0-1


[Site "https://www.chess.com"]

[Event "Titled Tuesday Blitz August 08 Early 2023"]
[White "Bharath Subramaniyam H"]
[Black "Sakun, Volodymyr"]
[WhiteFideId "46634827"]
[BlackFideId "14114062"]
[WhiteElo "2830"]
[BlackElo "2671"]
[Result "1-0"]
[Round "9"]
[TimeControl "180+1"]
[Date "2023.08.08"]
[WhiteClock "0:01:02"]
[BlackClock "0:00:00"]
[Board "36"]

1. c4 {[%clk 0:02:56]}  e5 {[%clk 0:02:59]} 2. Nf3 {[%clk 0:02:55]}  Nc6 {[%clk 0:02:58]} 3. d4 {[%clk 0:02:55]}  exd4 {[%clk 0:02:57]} 4. Nxd4 {[%clk 0:02:56]}  Bb4+ {[%clk 0:02:57]} 5. Bd2 {[%clk 0:02:56]}  Bxd2+ {[%clk 0:02:56]} 6. Qxd2 {[%clk 0:02:56]}  Nxd4 {[%clk 0:02:55]} 7. Qxd4 {[%clk 0:02:56]}  Qf6 {[%clk 0:02:55]} 8. Qd2 {[%clk 0:02:55]}  Ne7 {[%clk 0:02:55]} 9. Nc3 {[%clk 0:02:55]}  O-O {[%clk 0:02:54]} 10. g3 {[%clk 0:02:56]}  c6 {[%clk 0:02:51]} 11. Bg2 {[%clk 0:02:55]}  Rd8 {[%clk 0:02:51]} 12. O-O {[%clk 0:02:54]}  d5 {[%clk 0:02:49]} 13. cxd5 {[%clk 0:02:54]}  cxd5 {[%clk 0:02:50]} 14. Rfd1 {[%clk 0:02:38]}  Be6 {[%clk 0:02:45]} 15. Rac1 {[%clk 0:02:38]}  h6 {[%clk 0:02:38]} 16. Nb5 {[%clk 0:02:36]}  a6 {[%clk 0:02:34]} 17. Nd4 {[%clk 0:02:35]}  Rac8 {[%clk 0:02:33]} 18. Qb4 {[%clk 0:02:24]}  Rc4 {[%clk 0:02:24]} 19. Qb6 {[%clk 0:02:18]}  Rd7 {[%clk 0:02:02]} 20. Nxe6 {[%clk 0:02:14]}  Rxc1 {[%clk 0:01:57]} 21. Rxc1 {[%clk 0:02:14]}  Qxe6 {[%clk 0:01:54]} 22. Qb3 {[%clk 0:01:56]}  Qxe2 {[%clk 0:01:48]} 23. Bh3 {[%clk 0:01:56]}  Rd6 {[%clk 0:01:09]} 24. Qxb7 {[%clk 0:01:54]}  Rf6 {[%clk 0:01:05]} 25. Rf1 {[%clk 0:01:53]}  d4 {[%clk 0:01:01]} 26. Bg2 {[%clk 0:01:44]}  d3 {[%clk 0:00:55]} 27. Be4 {[%clk 0:01:42]}  Ng6 {[%clk 0:00:34]} 28. Qc8+ {[%clk 0:01:38]}  Kh7 {[%clk 0:00:34]} 29. Qc4 {[%clk 0:01:38]}  Rd6 {[%clk 0:00:28]} 30. Bf5 {[%clk 0:01:29]}  Qxb2 {[%clk 0:00:19]} 31. Bxd3 {[%clk 0:01:23]}  Qd4 {[%clk 0:00:14]} 32. Qxd4 {[%clk 0:01:07]}  Rxd4 {[%clk 0:00:15]} 33. Rd1 {[%clk 0:01:05]}  Ra4 {[%clk 0:00:15]} 34. Rd2 {[%clk 0:01:03]}  Kg8 {[%clk 0:00:12]} 35. f4 {[%clk 0:01:03]}  Ne7 {[%clk 0:00:00]} 36. Bc2 {[%clk 0:01:02]} 1-0


[Site "https://www.chess.com"]

[Event "Titled Tuesday Blitz August 08 Early 2023"]
[White "Mikhailovsky, Vladimir"]
[Black "KorolDimitriy75"]
[WhiteFideId "34105414"]
[WhiteElo "2807"]
[BlackElo "2413"]
[Result "1-0"]
[Round "9"]
[TimeControl "180+1"]
[Date "2023.08.08"]
[WhiteClock "0:00:07"]
[BlackClock "0:00:00"]
[Board "38"]

1. e4 {[%clk 0:02:53]}  c5 {[%clk 0:02:59]} 2. Nf3 {[%clk 0:02:52]}  d6 {[%clk 0:03:00]} 3. d4 {[%clk 0:02:49]}  cxd4 {[%clk 0:03:01]} 4. Nxd4 {[%clk 0:02:49]}  Nf6 {[%clk 0:03:01]} 5. Nc3 {[%clk 0:02:50]}  g6 {[%clk 0:03:02]} 6. Be3 {[%clk 0:02:48]}  Bg7 {[%clk 0:03:02]} 7. f3 {[%clk 0:02:49]}  O-O {[%clk 0:03:02]} 8. Qd2 {[%clk 0:02:50]}  Nc6 {[%clk 0:03:02]} 9. O-O-O {[%clk 0:02:50]}  d5 {[%clk 0:03:03]} 10. exd5 {[%clk 0:02:50]}  Nxd5 {[%clk 0:03:04]} 11. Nxc6 {[%clk 0:02:51]}  bxc6 {[%clk 0:03:04]} 12. Bd4 {[%clk 0:02:52]}  e5 {[%clk 0:03:04]} 13. Bc5 {[%clk 0:02:52]}  Be6 {[%clk 0:03:04]} 14. Ne4 {[%clk 0:02:51]}  Rb8 {[%clk 0:03:04]} 15. h4 {[%clk 0:02:42]}  f5 {[%clk 0:03:03]} 16. Ng5 {[%clk 0:02:41]}  e4 {[%clk 0:03:03]} 17. Bd4 {[%clk 0:02:16]}  e3 {[%clk 0:03:03]} 18. Qd3 {[%clk 0:02:14]}  Nb4 {[%clk 0:03:02]} 19. Qxe3 {[%clk 0:02:11]}  Nxa2+ {[%clk 0:03:02]} 20. Kb1 {[%clk 0:02:08]}  Rxb2+ {[%clk 0:02:53]} 21. Kxb2 {[%clk 0:02:02]}  Qb6+ {[%clk 0:01:15]} 22. Ka1 {[%clk 0:02:01]}  Bd5 {[%clk 0:01:13]} 23. c4 {[%clk 0:01:26]}  Qa5 {[%clk 0:00:41]} 24. Qb3 {[%clk 0:00:43]}  Nc3+ {[%clk 0:00:29]} 25. Kb2 {[%clk 0:00:42]}  Nxd1+ {[%clk 0:00:26]} 26. Kc1 {[%clk 0:00:36]}  Bxd4 {[%clk 0:00:16]} 27. cxd5 {[%clk 0:00:36]}  Be3+ {[%clk 0:00:11]} 28. Kb1 {[%clk 0:00:30]}  Qe1 {[%clk 0:00:05]} 29. dxc6+ {[%clk 0:00:25]}  Kh8 {[%clk 0:00:05]} 30. Qb7 {[%clk 0:00:06]}  Nc3+ {[%clk 0:00:02]} 31. Kc2 {[%clk 0:00:06]}  Qd2+ {[%clk 0:00:00]} 32. Kb3 {[%clk 0:00:07]} 1-0


[Site "https://www.chess.com"]

[Event "Titled Tuesday Blitz August 08 Early 2023"]
[White "Jones, Gawain C B"]
[Black "Rosenberg, Evan S"]
[WhiteFideId "409561"]
[BlackFideId "2019299"]
[WhiteElo "2880"]
[BlackElo "2457"]
[Result "1-0"]
[Round "9"]
[TimeControl "180+1"]
[Date "2023.08.08"]
[WhiteClock "0:01:04"]
[BlackClock "0:00:07"]
[Board "39"]

1. e4 {[%clk 0:03:00]}  c5 {[%clk 0:02:58]} 2. Nc3 {[%clk 0:03:00]}  g6 {[%clk 0:02:57]} 3. d4 {[%clk 0:02:59]}  cxd4 {[%clk 0:02:55]} 4. Qxd4 {[%clk 0:03:00]}  Nf6 {[%clk 0:02:55]} 5. Be3 {[%clk 0:02:58]}  Nc6 {[%clk 0:02:54]} 6. Qd2 {[%clk 0:02:58]}  Ng4 {[%clk 0:02:20]} 7. Bf4 {[%clk 0:02:52]}  e5 {[%clk 0:02:14]} 8. Bg5 {[%clk 0:02:47]}  f6 {[%clk 0:02:14]} 9. h3 {[%clk 0:02:42]}  Nxf2 {[%clk 0:02:06]} 10. Qxf2 {[%clk 0:02:43]}  fxg5 {[%clk 0:02:06]} 11. Bc4 {[%clk 0:02:43]}  Qe7 {[%clk 0:01:53]} 12. Nd5 {[%clk 0:02:43]}  Qc5 {[%clk 0:01:45]} 13. Nc7+ {[%clk 0:02:42]}  Kd8 {[%clk 0:01:43]} 14. Qxc5 {[%clk 0:02:40]}  Bxc5 {[%clk 0:01:43]} 15. Nxa8 {[%clk 0:02:41]}  b6 {[%clk 0:01:36]} 16. Nf3 {[%clk 0:02:38]}  h6 {[%clk 0:01:28]} 17. Bd5 {[%clk 0:02:32]}  Bb7 {[%clk 0:01:27]} 18. Nxe5 {[%clk 0:02:31]}  Re8 {[%clk 0:01:17]} 19. Nf7+ {[%clk 0:01:52]}  Kc8 {[%clk 0:01:17]} 20. Nxb6+ {[%clk 0:01:49]}  axb6 {[%clk 0:01:14]} 21. O-O-O {[%clk 0:01:48]}  Kc7 {[%clk 0:01:11]} 22. Nxh6 {[%clk 0:01:47]}  Ba6 {[%clk 0:01:02]} 23. Ng4 {[%clk 0:01:43]}  Be2 {[%clk 0:00:59]} 24. Rde1 {[%clk 0:01:38]}  Bxg4 {[%clk 0:00:53]} 25. hxg4 {[%clk 0:01:37]}  Ne5 {[%clk 0:00:53]} 26. c3 {[%clk 0:01:26]}  Nd3+ {[%clk 0:00:49]} 27. Kd2 {[%clk 0:01:26]}  Nxe1 {[%clk 0:00:50]} 28. Kxe1 {[%clk 0:01:24]}  Rf8 {[%clk 0:00:46]} 29. b4 {[%clk 0:01:22]}  Bf2+ {[%clk 0:00:44]} 30. Ke2 {[%clk 0:01:21]}  Bh4 {[%clk 0:00:45]} 31. Rf1 {[%clk 0:01:18]}  Rxf1 {[%clk 0:00:40]} 32. Kxf1 {[%clk 0:01:19]}  Bg3 {[%clk 0:00:40]} 33. Ke2 {[%clk 0:01:18]}  Kd6 {[%clk 0:00:37]} 34. a4 {[%clk 0:01:15]}  Ke5 {[%clk 0:00:32]} 35. a5 {[%clk 0:01:13]}  bxa5 {[%clk 0:00:32]} 36. bxa5 {[%clk 0:01:14]}  Kf6 {[%clk 0:00:25]} 37. Kd3 {[%clk 0:01:07]}  Bb8 {[%clk 0:00:25]} 38. Kc4 {[%clk 0:01:07]}  Ke5 {[%clk 0:00:20]} 39. Kb5 {[%clk 0:01:07]}  Kf4 {[%clk 0:00:20]} 40. Kb6 {[%clk 0:01:05]}  Kxg4 {[%clk 0:00:16]} 41. a6 {[%clk 0:01:05]}  Be5 {[%clk 0:00:07]} 42. a7 {[%clk 0:01:04]} 1-0


[Site "https://www.chess.com"]

[Event "Titled Tuesday Blitz August 08 Early 2023"]
[White "Fantastic_Power"]
[Black "Moskvin, Anatoly"]
[BlackFideId "24199990"]
[WhiteElo "2800"]
[BlackElo "2599"]
[Result "0-1"]
[Round "9"]
[TimeControl "180+1"]
[Date "2023.08.08"]
[WhiteClock "0:00:00"]
[BlackClock "0:00:07"]
[Board "40"]

1. e4 {[%clk 0:02:53]}  e5 {[%clk 0:02:59]} 2. Nf3 {[%clk 0:02:47]}  Nc6 {[%clk 0:02:59]} 3. Bc4 {[%clk 0:02:44]}  Nf6 {[%clk 0:02:59]} 4. d4 {[%clk 0:02:43]}  exd4 {[%clk 0:02:59]} 5. O-O {[%clk 0:02:43]}  Nxe4 {[%clk 0:02:59]} 6. Re1 {[%clk 0:02:43]}  d5 {[%clk 0:03:00]} 7. Bxd5 {[%clk 0:02:44]}  Qxd5 {[%clk 0:03:01]} 8. Nc3 {[%clk 0:02:45]}  Qa5 {[%clk 0:03:01]} 9. Nxe4 {[%clk 0:02:45]}  Be6 {[%clk 0:03:02]} 10. Bd2 {[%clk 0:02:45]}  Qb6 {[%clk 0:02:48]} 11. Bg5 {[%clk 0:02:35]}  h6 {[%clk 0:02:35]} 12. Bh4 {[%clk 0:02:35]}  Bd6 {[%clk 0:02:32]} 13. Qd2 {[%clk 0:01:37]}  Bb4 {[%clk 0:01:13]} 14. c3 {[%clk 0:01:29]}  dxc3 {[%clk 0:01:13]} 15. bxc3 {[%clk 0:01:30]}  Be7 {[%clk 0:01:14]} 16. Rab1 {[%clk 0:01:19]}  Qa5 {[%clk 0:01:11]} 17. Bxe7 {[%clk 0:01:14]}  Nxe7 {[%clk 0:01:12]} 18. Nd4 {[%clk 0:01:00]}  O-O {[%clk 0:00:40]} 19. Nxe6 {[%clk 0:00:54]}  fxe6 {[%clk 0:00:41]} 20. Qd7 {[%clk 0:00:54]}  Nd5 {[%clk 0:00:31]} 21. Qxe6+ {[%clk 0:00:48]}  Kh8 {[%clk 0:00:31]} 22. Rxb7 {[%clk 0:00:48]}  Nxc3 {[%clk 0:00:26]} 23. Nxc3 {[%clk 0:00:27]}  Qxc3 {[%clk 0:00:27]} 24. Qe5 {[%clk 0:00:27]}  Qc2 {[%clk 0:00:22]} 25. Rb2 {[%clk 0:00:22]}  Qc4 {[%clk 0:00:18]} 26. h3 {[%clk 0:00:19]}  Qc6 {[%clk 0:00:18]} 27. Rbe2 {[%clk 0:00:17]}  Qc4 {[%clk 0:00:16]} 28. Re3 {[%clk 0:00:10]}  Qxa2 {[%clk 0:00:14]} 29. R1e2 {[%clk 0:00:09]}  Qf7 {[%clk 0:00:09]} 30. Qc5 {[%clk 0:00:04]}  Rad8 {[%clk 0:00:06]} 31. Re7 {[%clk 0:00:02]}  Rd1+ {[%clk 0:00:06]} 32. Kh2 {[%clk 0:00:03]}  Qf4+ {[%clk 0:00:06]} 33. g3 {[%clk 0:00:00]}  Qf3 {[%clk 0:00:07]} 0-1


[Site "https://www.chess.com"]